bitfinex/quotes_SOLUSD_20220211
["timestamp","ask_amount","ask_price","bid_price","bid_amount"]
[1644623724738,5.182,96.517,96.46,15.5549]
[1644623725139,5.182,96.517,96.461,2.38366791]
[1644623725741,42.53865944,96.518,96.461,3.82285861]
[1644623725939,42.53865944,96.518,96.47,15.5533]
[1644623726340,42.53865944,96.518,96.471,2.38366791]
[1644623727041,42.53865944,96.518,96.48,15.5518]
[1644623727742,0.05266347,96.53,96.481,2.38366791]
[1644623727945,5.181,96.529,96.49,15.5487]
[1644623728141,15.5498,96.55,96.49,15.5487]
[1644623728142,5.181,96.544,96.49,15.5487]
[1644623728344,0.05266347,96.54,96.49,15.5487]
[1644623728546,48.11764484,96.548,96.49,15.5487]
[1644623728749,5.18,96.547,96.49,15.5487]
[1644623729243,5.18,96.547,96.491,2.38366791]
[1644623729444,5.18,96.547,96.5,15.5487]
[1644623729646,0.05266347,96.54,96.5,15.5487]
[1644623729846,5.18,96.539,96.5,15.5487]
[1644623730043,48.11764484,96.548,96.5,15.5487]
[1644623730044,5.18,96.547,96.5,15.5487]
[1644623733266,48.11764484,96.548,96.51,15.5449]
[1644623733667,48.11764484,96.548,96.511,5.179]
[1644623733865,48.11764484,96.548,96.511,2.38366791]
[1644623734066,48.11764484,96.548,96.512,7.56266791]
[1644623734267,48.11764484,96.548,96.512,2.38366791]
[1644623734468,48.11764484,96.548,96.513,2.38366791]
[1644623734866,48.11764484,96.548,96.52,15.5423]
[1644623735667,5.179,96.579,96.52,15.5423]
[1644623736071,0.05266347,96.58,96.52,15.5423]
[1644623736270,5.178,96.579,96.52,15.5423]
[1644623736468,0.05266347,96.58,96.52,15.5423]
[1644623736768,38.32788754,96.587,96.521,2.38366791]
[1644623736968,0.05266347,96.58,96.54,15.5415]
[1644623737169,5.178,96.579,96.54,15.5415]
[1644623737369,5.176,96.586,96.54,15.5415]
[1644623739472,4.676,96.586,96.54,15.5415]
[1644623739675,19.0,96.585,96.515,5.178]
[1644623739874,15.59756347,96.58,96.515,5.178]
[1644623740075,5.178,96.579,96.49,15.5495]
[1644623740674,2.38366791,96.578,96.49,15.5495]
[1644623740876,15.5495,96.56,96.49,15.5495]
[1644623741078,35.92074739,96.559,96.49,15.5495]
[1644623741276,0.05266347,96.55,96.49,15.5495]
[1644623741980,5.18,96.549,96.49,15.5495]
[1644623743183,15.60256347,96.55,96.49,15.5495]
[1644623743984,15.5501,96.54,96.49,15.5495]
[1644623744181,4.68,96.539,96.48,15.5514]
[1644623744381,0.05266347,96.53,96.48,15.5514]
[1644623744580,0.05266347,96.54,96.47,1.4391907]
[1644623744784,37.77125629,96.528,96.469,1.4391907]
[1644623745182,5.181,96.527,96.469,1.4391907]
[1644623745383,5.181,96.527,96.47,15.5528]
[1644623745782,5.181,96.527,96.469,1.4391907]
[1644623745983,5.181,96.527,96.459,1.4391907]
[1644623746187,0.05266347,96.52,96.454,1.4391907]
[1644623746383,5.182,96.519,96.454,1.4391907]
[1644623746584,15.5553,96.51,96.46,15.5545]
[1644623746785,53.45347139,96.509,96.46,15.5545]
[1644623747385,53.45347139,96.509,96.462,34.36064068]
[1644623747386,48.27147139,96.509,96.462,34.36064068]
[1644623747587,48.27147139,96.509,96.461,5.182]
[1644623748188,5.182,96.508,96.46,15.5545]
[1644623750190,5.182,96.508,96.459,1.4391907]
[1644623750389,15.5562,96.5,96.456,1.4391907]
[1644623750591,5.182,96.499,96.454,1.4391907]
[1644623750790,5.182,96.507,96.456,1.4391907]
[1644623750991,5.182,96.498,96.455,1.4391907]
[1644623751212,5.182,96.506,96.457,1.4391907]
[1644623751399,5.182,96.497,96.457,1.4391907]
[1644623751592,5.182,96.508,96.457,1.4391907]
[1644623751795,4.682,96.508,96.46,15.5549]
[1644623751992,48.27147139,96.509,96.46,15.5549]
[1644623752195,53.45347139,96.509,96.46,15.5549]
[1644623753396,48.27147139,96.509,96.46,15.5549]
[1644623753596,48.27147139,96.509,96.463,1.4391907]
[1644623753999,48.27147139,96.509,96.464,1.4391907]
[1644623754198,48.27147139,96.509,96.465,1.4391907]
[1644623754397,5.182,96.508,96.465,1.4391907]
[1644623754596,5.182,96.508,96.464,1.4391907]
[1644623755396,5.182,96.508,96.46,15.5549]
[1644623756499,5.182,96.508,96.462,1.4391907]
[1644623756697,48.27147139,96.509,96.47,15.5525]
[1644623757197,48.27147139,96.509,96.471,5.181]
[1644623758500,48.27147139,96.509,96.47,15.5525]
[1644623760726,0.05266347,96.52,96.47,15.5525]
[1644623760927,0.05266347,96.52,96.453,5.181]
[1644623760928,24.272,96.529,96.48,15.5504]
[1644623761126,0.05266347,96.52,96.48,15.5504]
[1644623761328,15.60456347,96.53,96.48,15.5504]
[1644623761526,15.5519,96.53,96.48,15.5504]
[1644623761731,45.16717852,96.529,96.48,15.5504]
[1644623763831,45.16717852,96.529,96.48,16.9895907]
[1644623764231,45.16717852,96.529,96.481,1.4391907]
[1644623764428,45.16717852,96.529,96.49,15.5493]
[1644623764630,5.181,96.528,96.49,15.5493]
[1644623766936,5.181,96.528,96.48,15.5517]
[1644623767130,5.181,96.528,96.476,1.4391907]
[1644623767329,5.181,96.528,96.472,1.4391907]
[1644623767630,5.181,96.528,96.468,1.4391907]
[1644623767931,0.05266347,96.52,96.473,1.4391907]
[1644623768129,5.181,96.519,96.473,1.4391907]
[1644623768330,15.554,96.52,96.473,1.4391907]
[1644623768530,5.181,96.519,96.472,1.4391907]
[1644623769130,28.0159,96.528,96.466,1.4391907]
[1644623769330,0.05266347,96.51,96.466,1.4391907]
[1644623769533,5.181,96.527,96.464,1.4391907]
[1644623769734,5.182,96.509,96.464,1.4391907]
[1644623769931,35.39185169,96.508,96.464,1.4391907]
[1644623770130,40.57385169,96.508,96.463,1.4391907]
[1644623770930,40.57385169,96.508,96.464,1.4391907]
[1644623771331,15.5562,96.5,96.466,1.4391907]
[1644623771532,5.182,96.499,96.467,1.4391907]
[1644623771732,5.182,96.499,96.466,1.4391907]
[1644623771933,5.182,96.499,96.467,1.4391907]
[1644623772235,15.5562,96.5,96.469,1.4391907]
[1644623772433,35.39185169,96.508,96.469,1.4391907]
[1644623772831,35.39185169,96.508,96.47,1.4391907]
[1644623773033,35.39185169,96.508,96.471,1.4391907]
[1644623773234,35.39185169,96.508,96.472,1.4391907]
[1644623773434,35.39185169,96.508,96.475,1.4391907]
[1644623773834,5.181,96.507,96.475,1.4391907]
[1644623774036,5.181,96.507,96.477,1.4391907]
[1644623774235,35.39185169,96.508,96.478,1.4391907]
[1644623775037,5.181,96.507,96.478,1.4391907]
[1644623775241,15.5559,96.5,96.472,1.4391907]
[1644623775438,5.182,96.499,96.471,1.4391907]
[1644623775637,5.182,96.499,96.472,1.4391907]
[1644623776248,15.5578,96.49,96.445,2.85028277]
[1644623776451,15.5578,96.49,96.438,2.85028277]
[1644623776641,15.5578,96.49,96.397,45.9947]
[1644623776642,5.183,96.489,96.426,2.85028277]
[1644623776844,5.183,96.497,96.425,2.85028277]
[1644623777040,35.3806492,96.487,96.427,5.5281133]
[1644623777239,15.563,96.48,96.418,2.85028277]
[1644623777443,15.563,96.48,96.417,2.85028277]
[1644623777641,5.184,96.479,96.417,2.85028277]
[1644623777843,5.184,96.479,96.411,5.5281133]
[1644623777844,5.184,96.479,96.416,2.85028277]
[1644623778043,5.184,96.485,96.416,2.85028277]
[1644623778243,5.184,96.485,96.412,8.03328277]
[1644623778443,5.184,96.485,96.413,5.5281133]
[1644623778846,15.5627,96.47,96.411,5.5281133]
[1644623779044,5.184,96.469,96.411,5.5281133]
[1644623779444,34.89468708,96.468,96.411,5.5281133]
[1644623779851,5.184,96.467,96.404,2.85028277]
[1644623780048,5.184,96.467,96.401,2.85028277]
[1644623780247,5.184,96.467,96.395,2.85028277]
[1644623780446,15.5625,96.46,96.4,0.024]
[1644623780648,15.5625,96.46,96.374,5.5281133]
[1644623780649,5.184,96.459,96.39,0.024]
[1644623780845,2.38366791,96.459,96.4,0.024]
[1644623781047,5.184,96.458,96.39,0.024]
[1644623781246,2.38366791,96.458,96.38,0.024]
[1644623781447,5.184,96.457,96.39,0.024]
[1644623781645,5.184,96.457,96.38,0.024]
[1644623781846,5.184,96.466,96.38,0.024]
[1644623782654,15.568,96.44,96.38,0.024]
[1644623782948,41.85846982,96.439,96.38,0.024]
[1644623784148,15.568,96.43,96.38,0.024]
[1644623785350,15.568,96.43,96.381,5.186]
[1644623786651,15.568,96.43,96.38,0.024]
[1644623787455,41.85846982,96.439,96.36,0.024]
[1644623787456,7.56966791,96.429,96.36,0.024]
[1644623787761,7.56966791,96.429,96.34,0.024]
[1644623787762,15.5741,96.41,96.34,0.024]
[1644623787955,5.188,96.409,96.35,0.024]
[1644623788159,29.5364,96.409,96.323,2.85028277]
[1644623788354,24.3484,96.409,96.34,0.024]
[1644623788557,36.47744675,96.408,96.33,0.024]
[1644623788958,5.188,96.407,96.33,0.024]
[1644623789160,5.188,96.407,96.34,0.024]
[1644623789361,5.188,96.407,96.33,0.024]
[1644623789558,5.188,96.407,96.34,0.024]
[1644623789760,15.5768,96.4,96.331,34.30729044]
[1644623789959,5.188,96.399,96.34,0.024]
[1644623790559,15.5768,96.4,96.34,0.024]
[1644623791161,5.188,96.399,96.34,0.024]
[1644623791361,5.188,96.399,96.33,15.5971]
[1644623793961,15.5768,96.4,96.33,15.5971]
[1644623794161,15.5768,96.4,96.34,0.024]
[1644623794362,5.188,96.399,96.34,0.024]
[1644623794565,5.188,96.399,96.33,15.5971]
[1644623795362,5.188,96.399,96.331,5.49423662]
[1644623795568,15.5768,96.4,96.34,0.024]
[1644623797968,5.188,96.399,96.34,0.024]
[1644623799471,15.5768,96.4,96.34,0.024]
[1644623799672,15.5768,96.4,96.332,5.49835471]
[1644623799871,15.5768,96.4,96.34,0.024]
[1644623800700,5.188,96.431,96.35,6.43314223]
[1644623800993,5.187,96.447,96.36,0.024]
[1644623801196,5.186,96.47,96.37,14.954]
[1644623801392,5.186,96.446,96.371,47.1826]
[1644623801592,39.7749582,96.445,96.372,29.22769726]
[1644623801790,39.7749582,96.445,96.39,15.5624]
[1644623801991,5.186,96.444,96.39,15.5864]
[1644623802289,39.7749582,96.445,96.391,5.184]
[1644623802893,39.7749582,96.445,96.39,15.5864]
[1644623803495,39.7749582,96.445,96.391,46.43245421]
[1644623803695,39.7749582,96.445,96.4,15.5633]
[1644623804298,5.184,96.444,96.4,15.5633]
[1644623804697,39.7749582,96.445,96.4,15.5633]
[1644623805098,15.5637,96.46,96.4,15.5633]
[1644623805301,5.184,96.477,96.401,7.56766791]
[1644623805499,47.6245,96.478,96.42,15.5605]
[1644623805699,47.6245,96.478,96.421,5.184]
[1644623805903,5.184,96.477,96.421,5.184]
[1644623806101,37.37565718,96.476,96.421,5.184]
[1644623806300,5.184,96.475,96.421,5.184]
[1644623806502,5.184,96.475,96.43,15.5592]
[1644623806700,37.37565718,96.476,96.43,15.5592]
[1644623808001,5.183,96.475,96.43,15.5592]
[1644623808200,37.37565718,96.476,96.43,15.5592]
[1644623811505,5.183,96.475,96.431,2.38366791]
[1644623811703,5.183,96.508,96.44,15.5574]
[1644623812703,48.64026195,96.507,96.44,15.5574]
[1644623812903,5.182,96.506,96.44,15.5574]
[1644623813805,15.5571,96.5,96.44,15.5574]
[1644623814005,5.182,96.499,96.44,15.5574]
[1644623815305,5.182,96.506,96.44,15.5574]
[1644623818117,15.5572,96.5,96.44,15.5574]
[1644623818315,5.182,96.499,96.431,23.4007]
[1644623818520,2.38366791,96.505,96.43,15.5593]
[1644623818715,5.183,96.498,96.43,15.5593]
[1644623818914,2.38366791,96.499,96.43,15.5593]
[1644623819115,2.38366791,96.497,96.43,15.5593]
[1644623819515,5.183,96.496,96.43,15.5593]
[1644623819716,15.5588,96.49,96.43,15.5593]
[1644623819917,35.83870986,96.488,96.43,15.5593]
[1644623820120,5.183,96.487,96.43,15.5593]
[1644623820717,15.5602,96.48,96.43,15.5593]
[1644623824521,5.183,96.479,96.43,15.5593]
[1644623825024,15.5615,96.47,96.42,15.5611]
[1644623825223,5.184,96.469,96.42,15.5611]
[1644623825422,22.5839,96.487,96.42,15.5611]
[1644623825825,5.183,96.486,96.42,15.5611]
[1644623826825,15.5602,96.48,96.421,2.38366791]
[1644623827026,5.184,96.479,96.42,15.5611]
[1644623828226,15.5602,96.48,96.42,15.5611]
[1644623829632,15.5602,96.48,96.421,5.184]
[1644623829828,15.5602,96.48,96.43,15.5591]
[1644623830131,22.5839,96.487,96.43,15.5591]
[1644623830328,22.5839,96.487,96.431,5.183]
[1644623830531,22.5839,96.487,96.423,29.9957]
[1644623830730,22.5839,96.487,96.424,5.51933428]
[1644623830930,22.5839,96.487,96.425,5.183]
[1644623831129,22.5839,96.487,96.426,5.51933428]
[1644623831331,22.5839,96.487,96.426,7.90300219]
[1644623831534,22.5839,96.487,96.44,15.5577]
[1644623834258,5.183,96.486,96.44,15.5577]
[1644623838361,22.5839,96.487,96.44,15.5577]
[1644623839465,22.5839,96.487,96.441,2.38366791]
[1644623839763,22.5839,96.487,96.44,15.5577]
[1644623845477,5.183,96.486,96.431,8.03328277]
[1644623845677,15.5597,96.48,96.431,5.183]
[1644623845875,5.183,96.479,96.413,2.85028277]
[1644623846176,5.183,96.479,96.414,5.52955668]
[1644623846377,5.184,96.485,96.412,2.85028277]
[1644623846576,48.09352226,96.459,96.413,5.52955668]
[1644623846776,48.09352226,96.459,96.411,5.52955668]
[1644623848681,15.5636,96.45,96.411,5.52955668]
[1644623849088,48.09352226,96.459,96.42,15.5624]
[1644623849282,48.09352226,96.459,96.421,10.71355668]
[1644623849480,48.09352226,96.459,96.422,5.52955668]
[1644623849881,48.09352226,96.459,96.422,7.91322459]
[1644623850087,48.09352226,96.459,96.423,10.71355668]
[1644623850283,5.184,96.499,96.43,15.5588]
[1644623850482,0.05266347,96.51,96.448,2.85028277]
[1644623850684,0.05266347,96.55,96.448,2.85028277]
[1644623850984,5.181,96.549,96.453,2.85028277]
[1644623851182,15.5519,96.53,96.453,2.85028277]
[1644623851383,0.05266347,96.52,96.46,15.5519]
[1644623851583,23.3578,96.539,96.46,15.5519]
[1644623851786,0.05266347,96.52,96.44,2.85028277]
[1644623851984,0.05266347,96.52,96.434,2.85028277]
[1644623852184,5.182,96.519,96.433,2.85028277]
[1644623852385,41.9412098,96.518,96.433,2.85028277]
[1644623852586,0.05266347,96.51,96.432,8.42372273]
[1644623852788,0.05266347,96.51,96.432,5.57343996]
[1644623852990,5.182,96.509,96.432,5.57343996]
[1644623853188,5.182,96.509,96.44,15.5589]
[1644623854392,15.5593,96.5,96.432,5.182]
[1644623854590,5.183,96.499,96.43,15.5601]
[1644623854791,39.62047991,96.498,96.43,15.5601]
[1644623854991,5.183,96.497,96.43,15.5601]
[1644623856693,15.5601,96.48,96.43,15.5601]
[1644623856893,5.183,96.479,96.43,15.5601]
[1644623857194,5.183,96.479,96.42,15.5619]
[1644623857395,5.184,96.489,96.421,5.57761376]
[1644623857593,28.182,96.478,96.411,2.85028277]
[1644623857797,15.5615,96.47,96.412,2.85028277]
[1644623858193,15.5615,96.47,96.42,15.562]
[1644623858194,5.184,96.469,96.42,15.562]
[1644623858696,5.184,96.469,96.421,5.57761376]
[1644623859296,40.37692857,96.477,96.43,15.5603]
[1644623860113,40.37692857,96.477,96.431,5.57563212]
[1644623860314,40.37692857,96.477,96.431,10.75863212]
[1644623860715,40.37692857,96.477,96.432,7.95930003]
[1644623860919,40.37692857,96.477,96.433,5.57563212]
[1644623861113,40.37692857,96.477,96.431,5.57563212]
[1644623861413,40.37692857,96.477,96.431,10.75863212]
[1644623861616,40.37692857,96.477,96.432,5.57563212]
[1644623863116,40.37692857,96.477,96.433,2.38366791]
[1644623863416,40.37692857,96.477,96.434,5.57563212]
[1644623863817,40.37692857,96.477,96.431,5.57563212]
[1644623864017,40.37692857,96.477,96.432,5.183]
[1644623864218,40.37692857,96.477,96.433,5.57563212]
[1644623864619,40.37692857,96.477,96.434,5.183]
[1644623865023,40.37692857,96.477,96.435,5.57563212]
[1644623865221,40.37692857,96.477,96.433,5.183]
[1644623865425,40.37692857,96.477,96.434,5.57563212]
[1644623865722,40.37692857,96.477,96.435,10.75863212]
[1644623865922,40.37692857,96.477,96.436,5.57563212]
[1644623866325,40.37692857,96.477,96.433,5.57563212]
[1644623866723,40.37692857,96.477,96.434,5.57563212]
[1644623866925,40.37692857,96.477,96.432,5.57563212]
[1644623868132,40.37692857,96.477,96.44,15.5587]
[1644623868531,28.9554,96.509,96.441,2.38366791]
[1644623868734,28.9554,96.509,96.442,30.26299219]
[1644623868927,28.9554,96.509,96.46,15.5554]
[1644623869127,23.7724,96.509,96.46,15.5554]
[1644623869533,47.81389576,96.508,96.46,15.5554]
[1644623869927,5.182,96.507,96.46,15.5554]
[1644623870731,5.182,96.507,96.45,15.5568]
[1644623874733,47.81389576,96.508,96.451,5.182]
[1644623874935,47.81389576,96.508,96.46,15.5553]
[1644623875434,47.81389576,96.508,96.461,2.38366791]
[1644623876435,15.5569,96.5,96.445,2.85028277]
[1644623876635,5.182,96.499,96.427,2.85028277]
[1644623876834,5.182,96.499,96.42,2.85028277]
[1644623876835,29.9765,96.499,96.42,2.85028277]
[1644623877036,29.9765,96.499,96.416,2.85028277]
[1644623877233,29.9765,96.499,96.415,2.85028277]
[1644623877433,2.38366791,96.498,96.415,2.85028277]
[1644623877633,2.38366791,96.498,96.41,0.024]
[1644623877634,5.183,96.497,96.414,2.85028277]
[1644623877834,15.5613,96.48,96.42,15.5613]
[1644623878134,5.184,96.479,96.421,5.568556]
[1644623878536,44.10182871,96.478,96.421,5.568556]
[1644623878734,5.184,96.477,96.421,5.568556]
[1644623878937,15.5618,96.47,96.421,5.568556]
[1644623879136,5.184,96.469,96.421,5.568556]
[1644623879634,44.10182871,96.478,96.421,5.568556]
[1644623880037,44.10182871,96.478,96.42,15.5613]
[1644623880236,44.10182871,96.478,96.421,5.57833733]
[1644623880434,44.10182871,96.478,96.42,15.5613]
[1644623880836,5.184,96.477,96.42,15.5613]
[1644623881735,15.5624,96.47,96.42,15.5613]
[1644623881935,5.184,96.469,96.42,15.5613]
[1644623884340,15.5633,96.46,96.41,0.024]
[1644623884840,5.184,96.459,96.41,0.024]
[1644623885044,2.38366791,96.46,96.392,5.58147899]
[1644623885242,38.09056929,96.457,96.379,2.85028277]
[1644623885441,15.5664,96.45,96.378,2.85028277]
[1644623885638,15.5664,96.45,96.372,2.85028277]
[1644623885837,7.56966791,96.449,96.37,2.85028277]
[1644623886037,2.38366791,96.449,96.37,2.85028277]
[1644623886264,7.56966791,96.448,96.364,5.58147899]
[1644623886440,2.38366791,96.448,96.365,5.186]
[1644623886645,15.5707,96.43,96.37,15.5691]
[1644623886847,47.87591593,96.429,96.37,15.5691]
[1644623887043,47.87591593,96.429,96.371,5.58147899]
[1644623887246,47.87591593,96.429,96.367,8.43176176]
[1644623887445,47.87591593,96.429,96.369,2.85028277]
[1644623888043,47.87591593,96.429,96.368,2.85028277]
[1644623888243,47.87591593,96.429,96.367,5.58147899]
[1644623888846,47.87591593,96.429,96.38,15.5673]
[1644623890053,47.87591593,96.429,96.367,5.186]
[1644623890054,5.186,96.428,96.367,5.186]
[1644623890249,5.186,96.428,96.357,5.187]
[1644623890446,22.7313,96.427,96.348,2.85028277]
[1644623890647,5.187,96.426,96.349,2.85028277]
[1644623890846,5.187,96.426,96.348,2.85028277]
[1644623891046,5.187,96.426,96.349,5.187]
[1644623891246,5.187,96.426,96.35,5.48608034]
[1644623891646,15.5698,96.42,96.351,5.187]
[1644623891847,15.5698,96.42,96.352,5.48608034]
[1644623892846,15.5698,96.42,96.36,15.5708]
[1644623894167,15.5698,96.42,96.361,5.187]
[1644623894969,0.0098,96.42,96.362,45.19781468]
[1644623895168,5.187,96.475,96.38,5.62780229]
[1644623895369,5.187,96.495,96.381,10.66168364]
[1644623895569,29.6939,96.503,96.382,5.47768364]
[1644623895768,29.6939,96.503,96.383,8.03428277]
[1644623895968,40.39386939,96.475,96.385,36.91128802]
[1644623896168,40.39386939,96.475,96.41,1.43849763]
[1644623896368,40.39386939,96.475,96.411,5.184]
[1644623896572,40.39386939,96.475,96.42,15.5613]
[1644623898072,40.39386939,96.475,96.421,2.38366791]
[1644623898274,40.39386939,96.475,96.43,15.5572]
[1644623898674,40.39386939,96.475,96.431,2.38366791]
[1644623899078,5.183,96.474,96.42,1.43849763]
[1644623899374,5.183,96.474,96.415,1.43849763]
[1644623899576,5.183,96.474,96.417,1.43849763]
[1644623899975,4.683,96.474,96.417,1.43849763]
[1644623900577,4.683,96.474,96.42,15.5612]
[1644623902277,4.683,96.474,96.42,16.99969763]
[1644623902477,4.683,96.474,96.42,15.5612]
[1644623903078,40.39386939,96.475,96.42,15.5612]
[1644623903280,40.39386939,96.475,96.42,16.99969763]
[1644623904283,5.184,96.474,96.414,1.43849763]
[1644623904484,5.184,96.474,96.416,1.43849763]
[1644623905379,5.184,96.474,96.417,1.43849763]
[1644623906385,5.184,96.474,96.421,1.43849763]
[1644623906786,15.5634,96.47,96.421,1.43849763]
[1644623906983,5.184,96.469,96.421,1.43849763]
[1644623907584,5.184,96.469,96.42,1.43849763]
[1644623908184,5.184,96.469,96.422,1.43849763]
[1644623908385,5.184,96.469,96.42,1.43849763]
[1644623909185,5.184,96.469,96.421,1.43849763]
[1644623909392,15.5634,96.47,96.421,1.43849763]
[1644623910291,15.5634,96.47,96.422,1.43849763]
[1644623910489,15.5634,96.47,96.423,1.43849763]
[1644623910992,15.5634,96.47,96.424,1.43849763]
[1644623911393,15.5634,96.47,96.422,1.43849763]
[1644623911794,15.5634,96.47,96.421,1.43849763]
[1644623911996,5.184,96.469,96.419,1.43849763]
[1644623912193,15.5634,96.47,96.419,1.43849763]
[1644623912392,15.5634,96.47,96.422,1.43849763]
[1644623912591,15.5634,96.47,96.411,5.184]
[1644623912592,5.184,96.469,96.424,1.43849763]
[1644623913397,5.184,96.469,96.423,1.43849763]
[1644623914099,5.184,96.469,96.422,1.43849763]
[1644623914299,5.184,96.469,96.423,1.43849763]
[1644623914503,5.184,96.469,96.422,1.43849763]
[1644623914899,5.184,96.469,96.423,1.43849763]
[1644623915101,5.184,96.469,96.422,1.43849763]
[1644623915501,5.184,96.469,96.423,1.43849763]
[1644623915700,15.5634,96.47,96.424,1.43849763]
[1644623916300,15.5634,96.47,96.425,1.43849763]
[1644623916704,15.5634,96.47,96.411,5.184]
[1644623916705,15.5634,96.47,96.424,1.43849763]
[1644623917204,15.5634,96.47,96.421,1.43849763]
[1644623917405,15.5652,96.46,96.42,1.43849763]
[1644623917609,28.7162,96.509,96.421,42.04940671]
[1644623917812,5.184,96.504,96.436,1.43849763]
[1644623918007,0.05266347,96.51,96.446,1.43849763]
[1644623918205,0.05266347,96.5,96.458,1.43849763]
[1644623918409,0.05266347,96.52,96.461,1.43849763]
[1644623918706,0.05266347,96.52,96.462,1.43849763]
[1644623918907,5.181,96.549,96.463,1.43849763]
[1644623919106,5.181,96.549,96.469,40.06062792]
[1644623919305,5.181,96.549,96.469,41.49912555]
[1644623919508,5.181,96.549,96.471,1.43849763]
[1644623919808,5.181,96.549,96.48,15.5514]
[1644623920030,5.181,96.549,96.481,5.18]
[1644623920606,15.5526,96.54,96.481,5.18]
[1644623920807,5.18,96.539,96.481,5.18]
[1644623921206,5.18,96.547,96.481,5.18]
[1644623921408,39.95815173,96.537,96.481,5.18]
[1644623921811,5.18,96.536,96.481,5.18]
[1644623922012,7.56366791,96.536,96.481,5.18]
[1644623922210,2.38366791,96.535,96.481,5.18]
[1644623922410,5.18,96.534,96.481,5.18]
[1644623922611,15.5569,96.53,96.481,5.18]
[1644623922811,5.181,96.529,96.481,5.18]
[1644623923211,5.181,96.532,96.481,5.18]
[1644623923713,19.0,96.518,96.45,1.43849763]
[1644623923915,5.182,96.517,96.45,1.43849763]
[1644623924115,5.182,96.517,96.448,1.43849763]
[1644623924318,5.182,96.517,96.45,15.5575]
[1644623924518,5.182,96.518,96.45,15.5575]
[1644623924715,5.182,96.518,96.45,16.99599763]
[1644623924915,5.182,96.518,96.453,1.43849763]
[1644623925119,45.7041945,96.519,96.454,5.182]
[1644623925315,45.7041945,96.519,96.458,1.43849763]
[1644623925518,45.7041945,96.519,96.447,48.72810439]
[1644623925519,5.182,96.518,96.457,1.43849763]
[1644623925715,5.182,96.518,96.458,5.181]
[1644623926518,5.182,96.518,96.455,1.43849763]
[1644623926921,5.182,96.518,96.456,1.43849763]
[1644623927122,15.5571,96.51,96.455,1.43849763]
[1644623927318,5.182,96.509,96.455,1.43849763]
[1644623930840,5.182,96.509,96.454,1.43849763]
[1644623931042,5.182,96.509,96.455,1.43849763]
[1644623931240,5.182,96.509,96.454,1.43849763]
[1644623932842,45.7041945,96.519,96.46,15.5559]
[1644623933045,0.05266347,96.55,96.471,1.43849763]
[1644623933244,0.05266347,96.52,96.474,1.43849763]
[1644623933442,0.05266347,96.52,96.47,14.93]
[1644623933443,0.05266347,96.54,96.477,1.43849763]
[1644623933843,5.18,96.554,96.49,15.5485]
[1644623934042,41.80620839,96.538,96.49,15.5485]
[1644623934446,5.18,96.537,96.49,15.5485]
[1644623936246,41.80620839,96.538,96.49,15.5485]
[1644623937561,5.18,96.537,96.48,15.5519]
[1644623939550,41.80620839,96.538,96.48,16.99039763]
[1644623939750,41.80620839,96.538,96.481,1.43849763]
[1644623939951,41.80620839,96.538,96.49,15.5497]
[1644623941551,41.80620839,96.538,96.491,5.18]
[1644623942654,41.80620839,96.538,96.492,39.31101951]
[1644623942853,0.05266347,96.55,96.5,15.5481]
[1644623943056,0.05266347,96.57,96.502,1.43849763]
[1644623943254,0.05266347,96.57,96.494,1.43849763]
[1644623943453,5.179,96.569,96.493,31.01849763]
[1644623943652,0.05266347,96.56,96.493,31.01849763]
[1644623943853,0.05266347,96.58,96.493,31.01849763]
[1644623944054,38.26803933,96.588,96.493,31.01849763]
[1644623944254,0.05266347,96.58,96.496,1.43849763]
[1644623944455,5.179,96.579,96.496,1.43849763]
[1644623944654,24.2248,96.578,96.496,1.43849763]
[1644623944854,15.5477,96.57,96.51,15.5466]